fUSD/lending_fUSD_20240225
["ID","MTS","AMOUNT","RATE_DAILY","PERIOD"]
[315134921,1708873832388,-150.0,0.00023741,2]
[315134922,1708873832397,-150.99,0.00023741,2]
[315134923,1708873832406,-200.0,0.00023742,2]
[315134924,1708873832415,-186.48599194,0.00023742,2]
[315134925,1708873832424,-150.0,0.00023749,2]
[315134926,1708873832434,-150.0,0.00023749,2]
[315134927,1708873832444,-150.0,0.00023757,2]
[315134928,1708873832453,-200.0,0.00023758,2]
[315134929,1708873832462,-800.0,0.00023758,2]
[315134930,1708873832471,-200.0,0.00023758,2]
[315134931,1708873832481,-500.0,0.00023758,2]
[315134932,1708873832490,-186.48599192,0.00023761,2]
[315134933,1708873832499,-150.0,0.00023767,2]
[315134934,1708873832508,-150.0,0.00023769,2]
[315134935,1708873832517,-150.0,0.0002377,2]
[315134936,1708873832526,-150.0,0.00023771,2]
[315134937,1708873832535,-150.0,0.00023772,2]
[315134938,1708873832544,-1500.0,0.00023779,2]
[315134939,1708873832554,-300.0,0.00023779,2]
[315134940,1708873832564,-300.0,0.00023779,2]
[315134941,1708873832572,-300.0,0.00023779,2]
[315134942,1708873832581,-300.0,0.00023779,2]
[315134943,1708873832590,-186.48599192,0.00023781,2]
[315134944,1708873832600,-274.31604381,0.00023781,7]
[315134945,1708873832608,-151.84733851,0.00023783,2]
[315134946,1708873832618,-153.0514485,0.00023783,2]
[315134947,1708873832627,-832.12588324,0.00023783,2]
[315134948,1708873832636,-743.67232569,0.00023785,2]
[315134949,1708873832648,-1608.11197431,0.00023785,2]
[315134950,1708873832657,-150.0,0.0002379,2]
[315134951,1708873832666,-832.12588318,0.00023794,2]
[315134952,1708873832678,-18250.61521888,0.00023798,2]
[315134953,1708873832687,-3530.44692797,0.00023798,2]
[315134954,1708873832723,-5092.03599999,0.00023798,2]
[315134955,1708873832734,-9628.13229085,0.00023798,2]
[315134956,1708873832743,-186.48599192,0.000238,2]
[315134957,1708873832753,-832.12588318,0.00023804,2]
[315134958,1708873832763,-150.0,0.00023805,2]
[315134959,1708873832772,-500.0,0.00023806,2]
[315134960,1708873832781,-18250.61521881,0.00023811,2]
[315134961,1708873832790,-151.84733848,0.00023812,2]
[315134962,1708873832799,-832.12588318,0.00023815,2]
[315134963,1708873832808,-18250.61521881,0.00023823,2]
[315134964,1708873832819,-832.12588318,0.00023826,2]
[315134965,1708873832828,-150.0,0.0002383,2]
[315134966,1708873832837,-150.0,0.00023831,2]
[315134967,1708873832846,-150.0,0.00023836,2]
[315134968,1708873832855,-18250.61521881,0.00023836,2]
[315134969,1708873832864,-832.12588318,0.00023836,2]
[315134970,1708873832873,-150.0,0.00023837,2]
[315134971,1708873832882,-150.0,0.0002384,2]
[315134972,1708873832891,-151.84733848,0.00023842,2]
[315134973,1708873832900,-1500.0,0.00023843,2]
[315134974,1708873832909,-150.0,0.00023845,2]
[315134975,1708873832918,-150.0,0.00023846,2]
[315134976,1708873832927,-832.12588318,0.00023847,2]
[315134977,1708873832936,-18250.61521881,0.00023849,2]
[315134978,1708873832946,-832.12588318,0.00023857,2]
[315134979,1708873832955,-150.0,0.00023859,2]
[315134980,1708873832964,-9572.47086595,0.00023862,2]
[315134981,1708873832984,-959.63695771,0.00023862,2]
[315134982,1708873832996,-500.77266238,0.00023862,2]
[315134983,1708873833269,-914.73381817,0.00023862,2]
[315134984,1708873833280,-449.18837953,0.00023862,2]
[315134985,1708873833293,-1517.81619128,0.00023862,2]
[315134986,1708873833306,-4335.99634379,0.00023862,2]
[315134987,1708873833316,-150.0,0.00023863,2]
[315134988,1708873833325,-151.84733848,0.00023871,2]
[315134989,1708873833335,-203.82134233,0.00023872,2]
[315134990,1708873833344,-853.8349754,0.00023874,2]
[315134994,1708873838286,-832.12588318,0.00023868,2]
[315134995,1708873838295,-2833.05773905,0.00023874,2]
[315134996,1708873838306,-5202.05999997,0.00023874,2]
[315134997,1708873838318,-3531.94703399,0.00023874,2]
[315134998,1708873838329,-4932.86,0.00023874,2]
[315134999,1708873838344,-896.8554704,0.00023874,2]
[315135000,1708873838353,-870.43335712,0.00023875,2]
[315135001,1708873838362,-150.0,0.00023876,2]
[315135002,1708873838371,-16.21117248,0.00023877,2]
[315135003,1708873838382,-133.78882752,0.00023877,2]
[315135004,1708873838391,-1000.0,0.00023879,2]
[315135005,1708873838401,-1000.0,0.00023879,2]
[315135006,1708873838421,-1000.0,0.00023879,2]
[315135007,1708873838430,-1000.0,0.00023879,2]
[315135008,1708873838439,-1000.0,0.00023879,2]
[315135009,1708873838449,-348.61483748,0.00023879,2]
[315135010,1708873838475,-651.38516252,0.00023879,2]
[315135011,1708873838484,-1000.0,0.00023879,2]
[315135012,1708873838493,-1000.0,0.00023879,2]
[315135013,1708873838503,-1000.0,0.00023879,2]
[315135014,1708873838512,-1000.0,0.00023879,2]
[315135015,1708873838521,-1000.0,0.00023879,2]
[315135016,1708873838530,-1000.0,0.00023879,2]
[315135017,1708873838539,-1000.0,0.00023879,2]
[315135018,1708873838547,-1000.0,0.00023879,2]
[315135019,1708873838556,-1000.0,0.00023879,2]
[315135020,1708873838565,-1000.0,0.00023879,2]
[315135021,1708873838574,-1000.0,0.00023879,2]
[315135022,1708873838582,-1000.0,0.00023879,2]
[315135023,1708873838591,-1000.0,0.00023879,2]
[315135024,1708873838600,-1000.0,0.00023879,2]
[315135025,1708873838609,-1000.0,0.00023879,2]
[315135026,1708873838618,-1000.0,0.00023879,2]
[315135027,1708873838627,-683.8104,0.00023879,2]
[315135028,1708873838636,-500.0,0.00023879,2]
[315135029,1708873838645,-500.0,0.00023879,2]
[315135031,1708873838654,-519.4759,0.00023879,2]
[315135033,1708873838663,-205.0,0.0002388,2]
[315135035,1708873838673,-485.9379771,0.00023881,2]
[315135037,1708873838686,-64849.71497507,0.00023882,4]
[315135040,1708873838697,-3518.59518451,0.00023882,4]
[315135042,1708873838708,-2151.29820744,0.00023882,4]
[315135204,1708873841522,-832.12588318,0.00023879,2]
[315135205,1708873841532,-127062.31923145,0.00023882,4]
[315135206,1708873841544,-1548.09643358,0.00023882,4]
[315135207,1708873841609,-433.98417752,0.00023882,4]
[315135208,1708873841637,-76714.03419706,0.00023882,4]
[315135209,1708873841648,-355.32,0.00023882,4]
[315135210,1708873841807,-4233.88283251,0.00023882,4]
[315135213,1708873841837,-879.89479698,0.00023882,4]
[315135355,1708873843305,-1063902.35906169,0.00023881,2]
[315135356,1708873843314,-290553.72066763,0.00023882,4]
[315135357,1708873843324,-205.63485199,0.00023884,2]
[315135358,1708873843334,-192760.81703929,0.00023886,2]
[315135359,1708873843343,-18250.61521881,0.00023887,2]
[315135360,1708873843352,-150.0,0.00023888,2]
[315135361,1708873843362,-150.0,0.00023899,2]
[315135362,1708873843371,-150.0,0.00023899,2]
[315135363,1708873843380,-245000.0,0.000239,2]
[315135364,1708873843389,-58000.0,0.000239,2]
[315135365,1708873843399,-2419.38482445,0.000239,2]
[315135366,1708873843408,-1000.0,0.000239,5]
[315135367,1708873843418,-150.0,0.000239,2]
[315135368,1708873843427,-720889.70591789,0.000239,2]
[315135369,1708873843436,-424.04,0.000239,2]
[315135370,1708873843446,-344.67,0.000239,2]
[315135371,1708873843455,-413.26,0.000239,2]
[315135372,1708873843465,-304.22,0.000239,2]
[315135373,1708873843475,-424.04,0.000239,2]
[315135374,1708873843484,-413.26,0.000239,2]
[315135375,1708873843494,-18250.61521881,0.000239,2]
[315135376,1708873843503,-269.57,0.000239,2]
[315135377,1708873843513,-846.76,0.000239,2]
[315135378,1708873843523,-151.84733848,0.000239,2]
[315135379,1708873843534,-344.67,0.000239,2]
[315135380,1708873843544,-150.0,0.00023902,2]
[315135381,1708873843553,-150.0,0.00023903,2]
[315135382,1708873843562,-150.0,0.00023909,2]
[315135383,1708873843573,-150.0,0.00023909,2]
[315135384,1708873843582,-150.0,0.00023926,2]
[315135385,1708873843592,-150.0,0.00023929,2]
[315135386,1708873843601,-150.0,0.00023937,2]
[315135387,1708873843611,-150.0,0.00023942,2]
[315135388,1708873843620,-150.0,0.00023944,2]
[315135389,1708873843629,-150.0,0.00023944,2]
[315135390,1708873843638,-150.0,0.00023945,2]
[315135391,1708873843647,-150.0,0.00023947,2]
[315135392,1708873843657,-150.0,0.00023947,2]
[315135393,1708873843666,-150.0,0.00023951,2]
[315135394,1708873843676,-150.0,0.00023954,2]
[315135395,1708873843687,-232.32,0.00023955,2]
[315135396,1708873843696,-855.20075258,0.00023955,2]
[315135397,1708873843705,-150.0,0.00023958,2]
[315135398,1708873843714,-150.0,0.00023967,2]
[315135399,1708873843725,-150.0,0.00023967,2]
[315135400,1708873843733,-150.0,0.00023968,2]
[315135401,1708873843743,-150.0,0.00023974,2]
[315135402,1708873843753,-150.0,0.00023981,2]
[315135403,1708873843763,-150.0,0.00023986,2]
[315135404,1708873843773,-150.0,0.00023994,2]
[315135405,1708873843783,-2802.2072288,0.00023995,2]
[315135406,1708873843791,-72354.9368137,0.00023995,2]
[315135407,1708873843801,-3723.2090238,0.00023995,2]
[315135408,1708873843810,-298.88004715,0.00023997,2]
[315135409,1708873843819,-162.49960027,0.00023998,2]
[315135410,1708873843829,-2224.18971322,0.00023998,2]
[315135411,1708873843839,-243.40741934,0.00023998,2]
[315135412,1708873843849,-333.2382739,0.00023999,10]
[315135413,1708873843859,-333.2382739,0.00023999,10]
[315135414,1708873843868,-529.72754677,0.00023999,2]
[315135415,1708873843877,-357.24949388,0.00023999,10]
[315135416,1708873843886,-357.24949388,0.00023999,10]
[315135417,1708873843895,-357.24949388,0.00023999,10]
[315135418,1708873843904,-357.2494939,0.00023999,10]
[315135419,1708873843914,-667714.40028751,0.00024,30]
[315135420,1708873844151,-832.12588318,0.00023889,2]
[315135421,1708873844161,-736.37824184,0.00024,30]
[315135422,1708873844172,-3333.11052157,0.00024,30]
[315135423,1708873844184,-2978.48416798,0.00024,30]
[315135424,1708873844195,-1481.37468911,0.00024,30]
[315135425,1708873844207,-6829.45249087,0.00024,30]
[315135426,1708873844218,-2527.83832802,0.00024,30]
[315135427,1708873844230,-4121.61786747,0.00024,30]
[315135428,1708873844242,-274.76980259,0.00024,30]
[315135429,1708873844262,-266.265896,0.00024,30]
[315135430,1708873844303,-5962.24488,0.00024,30]
[315135431,1708873844315,-3093.79052044,0.00024,30]
[315135432,1708873844329,-4883.32635051,0.00024,30]
[315135433,1708873844341,-516.68256542,0.00024,30]
[315135434,1708873844353,-29773.77975192,0.00024,30]
[315135443,1708873846345,-15293.57824294,0.00024,30]
[315135444,1708873846457,-1323.85613166,0.00024,30]
[315135455,1708873847447,-794.78730198,0.00024,30]
[315135456,1708873847469,-5612.9,0.00024,30]
[315135457,1708873855142,-300.0,0.00023852,2]
[315135458,1708873855165,-832.12588318,0.000239,2]
[315135459,1708873855186,-867.87411682,0.000239,2]
[315135460,1708873857232,-145.12588318,0.000239,2]
[315135461,1708873857254,-199.72388188,0.000239,2]
[315135462,1708873857277,-150.0,0.00023923,2]
[315135463,1708873857300,-150.0,0.00023923,2]
[315135464,1708873857320,-1355.15023494,0.00023998,2]
[315135465,1708873857806,-465.965809,0.00023732,2]
[315135466,1708873857828,-424.20153563,0.00023998,2]
[315135467,1708873857851,-475.11608395,0.00023999,2]
[315135468,1708873857873,-150.69525563,0.00023999,2]
[315135469,1708873857895,-316.85450581,0.00023999,2]
[315135470,1708873857915,-167.16680998,0.00023999,2]
[315135471,1708873858353,-466.73770971,0.00023999,2]
[315135472,1708873858374,-333.27929254,0.00023999,10]
[315135473,1708873858395,-333.27929254,0.00023999,10]
[315135474,1708873858415,-333.27929254,0.00023999,10]
[315135475,1708873858436,-333.27929254,0.00023999,10]
[315135476,1708873858458,-200.14512013,0.00023999,10]
[315135477,1708873867012,1522.4123129,0.000234,2]
[315135478,1708873867033,2000.0,0.000234,2]
[315135479,1708873867166,2000.0,0.000234,2]
[315135480,1708873867188,2000.0,0.000234,2]
[315135481,1708873867210,2000.0,0.000234,2]
[315135482,1708873867231,2000.0,0.000234,2]
[315135483,1708873867253,2000.0,0.000234,2]
[315135484,1708873867278,90708.379638,0.000234,2]
[315135485,1708873896925,-1763.0,0.00023779,2]
[315135486,1708873909270,-2000.0,0.00023779,2]
[315135487,1708873953924,205.0,0.0002288,2]
[315135488,1708873977861,158.02,0.00023185,2]
[315135489,1708874021317,1525.039293,0.000235,2]
[315135490,1708874021672,586.1,0.00023153,2]
[315135491,1708874024608,18549.76,0.00023128,2]
[315135492,1708874145501,247.21,0.0002116,2]
[315135493,1708874145907,247.21,0.00023424,2]
[315135494,1708874239291,25722.82204623,0.00023424,2]
[315135495,1708874260756,17148.54803082,0.00023424,2]
[315135496,1708874276739,14290.45669235,0.00023424,2]
[315135497,1708874298757,14290.45669235,0.00023424,2]
[315135498,1708874300239,174.24,0.00022912,2]
[315135499,1708874315516,7445.32793672,0.00023424,2]
[315135500,1708874329956,161.32,0.00022908,2]
[315135501,1708874335513,7445.32793672,0.00022912,2]
[315135502,1708874346629,-161.44681944,0.0002368,2]
[315135503,1708874357509,1838.55318056,0.00022912,2]
[315135504,1708874357530,2000.0,0.00022912,2]
[315135505,1708874357550,2000.0,0.00022912,2]
[315135506,1708874357570,1339.65,0.00022912,2]
[315135507,1708874357590,267.12475616,0.00022912,2]
[315135508,1708874373515,7445.32793672,0.00022912,2]
[315135509,1708874389552,7445.32793672,0.00022912,2]
[315135510,1708874407537,7445.32793672,0.00022912,2]
[315135511,1708874425531,7445.32793672,0.00022912,2]
[315135512,1708874448996,7445.32793672,0.00022912,2]
[315135513,1708874464990,7445.32793672,0.00022912,2]
[315135514,1708874475049,531.12,0.00022886,2]
[315135515,1708874480984,4444.33203129,0.00022912,2]
[315135516,1708874504412,158.02,0.00022868,2]
[315135517,1708874512172,509.02,0.00022873,2]
[315135518,1708874543904,150.0,0.00022893,2]
[315135519,1708874545611,154.54387429,0.00023441,2]
[315135520,1708874595011,1513.25448213,0.00022847,2]
[315135521,1708874595698,1513.25448213,0.00023275,2]
[315135522,1708874596150,1513.25448213,0.00023355,2]
[315135523,1708874619782,166.02,0.00022834,2]
[315135524,1708874636271,155.95,0.00023001,2]
[315135525,1708874641775,342.29,0.00020912,2]
[315135526,1708874641985,342.29,0.00023176,2]
[315135527,1708874644534,2042.41,0.00022834,2]
[315135528,1708874659262,1585.8,0.00022839,2]
[315135529,1708874676980,-151.0,0.00028876,120]
[315135530,1708874681821,500.0,0.00022847,2]
[315135531,1708874707140,151.27923715,0.00022899,2]
[315135532,1708874715774,1513.25448213,0.00023316,2]
[315135533,1708874736080,185.97,0.00018292,2]
[315135534,1708874736448,185.97,0.00022865,2]
[315135535,1708874757874,279.58,0.00022856,2]
[315135536,1708874758753,1268.34,0.00022856,2]
[315135537,1708874764549,2715.0,0.00023,2]
[315135538,1708874776243,2445.670146,0.00023464,2]
[315135539,1708874811890,-49849.0,0.00024,30]
[315135540,1708874834113,1000.0,0.000232,2]
[315135541,1708874836726,361.13,0.00022831,2]
[315135542,1708874837723,2000.0,0.00022831,2]
[315135543,1708874887776,39936.26297259,0.000235,2]
[315135544,1708874887800,399365.60702741,0.000235,2]
[315135545,1708874891969,314.12,0.00022845,2]
[315135546,1708874938942,250.3071,0.0002343,2]
[315135547,1708874941124,200.0,0.0002283,2]
[315135548,1708874949527,575.1,0.00022826,2]
[315135549,1708874966962,974.5929,0.000235,2]
[315135550,1708874966985,2000.0,0.000235,2]
[315135551,1708874967010,1000.0,0.000235,2]
[315135552,1708874967034,281636.4071,0.000235,2]
[315135553,1708874971769,799.7,0.0002282,2]
[315135554,1708874976613,197.86,0.0002282,2]
[315135555,1708874976836,197.86,0.0002294,2]
[315135556,1708874977044,197.86,0.0002306,2]
[315135557,1708874977234,197.86,0.0002318,2]
[315135558,1708874977460,197.86,0.000233,2]
[315135559,1708874977654,197.86,0.0002342,2]
[315135562,1708874994643,23900.0,0.000228,2]
[315135568,1708875031486,-197.86,0.0002354,2]
[315135569,1708875031495,-179.825,0.00023582,2]
[315135570,1708875031507,-866.8007,0.00023582,2]
[315135571,1708875031516,-169.269073,0.00023582,2]
[315135572,1708875031526,-1513.25448213,0.00023586,2]
[315135573,1708875031535,-300.0,0.00023596,2]
[315135574,1708875031544,-169.26907299,0.00023638,2]
[315135575,1708875031553,-197.86,0.00023661,2]
[315135576,1708875031562,-150.0,0.0002369,2]
[315135577,1708875031576,-300.0,0.0002369,2]
[315135578,1708875031585,-978.95256941,0.00023691,2]
[315135579,1708875031656,-3071.93159999,0.00023691,2]
[315135580,1708875031668,-5355.11511262,0.00023691,2]
[315135581,1708875031689,-89697.11121798,0.00023691,2]
[315135582,1708875031699,-169.26907299,0.00023693,2]
[315135583,1708875031708,-150.0,0.00023752,2]
[315135584,1708875031717,-6531.908,0.00023779,2]
[315135585,1708875031726,-285.85,0.0002378,2]
[315135586,1708875031736,-197.86,0.00023781,2]
[315135587,1708875031745,-204.71219886,0.00023781,7]
[315135588,1708875031755,-413.59603984,0.00023782,2]
[315135589,1708875031764,-507.51412092,0.00023782,2]
[315135590,1708875031774,-437.49086754,0.00023782,2]
[315135591,1708875031783,-878698.8977718,0.0002379,2]
[315135592,1708875031800,-724.5271639,0.0002379,2]
[315135593,1708875031812,-4200.02505555,0.0002379,2]
[315135594,1708875032192,-448.30240893,0.0002379,2]
[315135595,1708875032204,-1599.87764,0.0002379,2]
[315135596,1708875032220,-59038.81147244,0.0002379,2]
[315135597,1708875032232,-304.1611753,0.0002379,2]
[315135598,1708875033483,-39919.34533296,0.0002379,2]
[315135599,1708875033547,-1754.78592982,0.0002379,4]
[315135600,1708875033559,-1015.73451253,0.0002379,4]
[315135607,1708875037384,-847.20729397,0.00023691,2]
[315135608,1708875037393,-857.56739502,0.0002379,4]
[315135609,1708875037495,-5418.24,0.0002379,4]
[315135610,1708875037507,-5341.22404655,0.0002379,4]
[315135611,1708875037670,-1909.42862918,0.0002379,4]
[315135612,1708875037682,-6430.41143714,0.0002379,4]
[315135614,1708875037737,-734.78714954,0.0002379,4]
[315135618,1708875039985,-847.20729396,0.00023693,2]
[315135619,1708875039995,-150.0,0.00023761,2]
[315135620,1708875040004,-139832.98581494,0.0002379,4]
[315135622,1708875040050,-307.46014093,0.0002379,4]
[315135623,1708875040062,-305.0,0.0002379,4]
[315135624,1708875040117,-3103.72225,0.0002379,4]
[315135625,1708875040176,-778.12715516,0.0002379,4]
[315135626,1708875040188,-683.08566178,0.0002379,4]
[315135627,1708875040914,-875.71616645,0.0002379,4]
[315135628,1708875040926,-5079.1,0.0002379,4]
[315135633,1708875041045,-3351.35777256,0.0002379,4]
[315135641,1708875043911,-847.20729396,0.00023694,2]
[315135642,1708875043921,-25334.37962211,0.0002379,4]
[315135643,1708875043972,-895.07497238,0.0002379,4]
[315135644,1708875043984,-15324.68287113,0.0002379,4]
[315135645,1708875044316,-2074.99306614,0.0002379,4]
[315135646,1708875044340,-207817.78093445,0.0002379,4]
[315135647,1708875044349,-78968.41104081,0.0002379,2]
[315135648,1708875044359,-15225.21661691,0.00023794,2]
[315135649,1708875044368,-159117.9824,0.00023796,2]
[315135650,1708875044378,-1035.51369174,0.00023798,2]
[315135651,1708875044387,-1035.51369172,0.00023798,2]
[315135652,1708875044397,-1035.51369172,0.00023798,2]
[315135653,1708875044406,-1035.51369172,0.00023798,2]
[315135654,1708875044415,-1035.51369172,0.00023798,2]
[315135655,1708875044424,-4000.0,0.000238,2]
[315135656,1708875044433,-200.0,0.00023807,2]
[315135657,1708875044443,-800.0,0.00023807,2]
[315135658,1708875044453,-200.0,0.00023807,2]
[315135659,1708875044461,-500.0,0.00023807,2]
[315135660,1708875044470,-1035.51369172,0.00023808,2]
[315135661,1708875044480,-150.0,0.00023812,2]
[315135662,1708875044490,-1035.51369172,0.00023831,2]
[315135663,1708875044499,-413.59603984,0.00023841,2]
[315135664,1708875044508,-507.51412091,0.00023841,2]
[315135665,1708875044518,-437.49086754,0.00023841,2]
[315135666,1708875044526,-150.0,0.00023843,2]
[315135667,1708875044537,-150.0,0.00023845,2]
[315135668,1708875044546,-1035.51369172,0.00023854,2]
[315135669,1708875044555,-500.0,0.00023874,2]
[315135670,1708875044565,-1035.51369172,0.00023877,2]
[315135671,1708875044574,-557022.76328112,0.0002388,3]
[315135672,1708875044584,-500.0,0.00023882,2]
[315135673,1708875044593,-1761.0,0.0002389,2]
[315135674,1708875044602,-500.0,0.00023891,2]
[315135675,1708875044612,-217760.26544994,0.00023899,2]
[315135684,1708875046030,-25910.79816648,0.00023899,2]
[315135688,1708875046072,-1328.93638358,0.00023899,2]
[315135690,1708875046081,-205.91361642,0.00023899,2]
[315135700,1708875051486,217.33,0.00023155,2]
[315135701,1708875072005,250.0,0.00023138,2]
[315135702,1708875078575,166.23,0.00023138,2]
[315135703,1708875096590,467.53,0.00021228,2]
[315135704,1708875096829,467.53,0.00023492,2]
[315135705,1708875152790,159.88,0.00023222,2]
[315135706,1708875153020,159.88,0.00023464,2]
[315135707,1708875175764,63627.5180956,0.000234,2]
[315135708,1708875198994,203.19833585,0.00023377,2]
[315135709,1708875223275,185.97,0.00018325,2]
[315135710,1708875297889,500.0,0.00022872,2]
[315135711,1708875364938,204.0,0.00023005,2]
[315135712,1708875370685,184.98362258,0.00023489,2]
[315135713,1708875380995,174.24,0.00022865,2]
[315135714,1708875382777,188.54114882,0.00023489,2]
[315135715,1708875394312,206.0,0.00023005,2]
[315135717,1708875407568,572.72,0.00022892,2]
[315135718,1708875423956,206.0,0.00023005,2]
[315135719,1708875440309,1000.0,0.00022852,2]
[315135720,1708875453948,2000.0,0.00022844,2]
[315135721,1708875458694,539.92,0.00022844,2]
[315135722,1708875478053,-155.0,0.0002352,2]
[315135723,1708875478073,-1912.6448073,0.0002352,2]
[315135724,1708875478094,-2932.3551927,0.00023521,2]
[315135725,1708875479510,300.0,0.00023489,2]
[315135726,1708875492515,-9658.6448073,0.00023521,2]
[315135727,1708875496680,10595.43,0.00022861,2]
[315135728,1708875516541,329.90849454,0.00022747,2]
[315135730,1708875547012,157.65,0.00022877,2]
[315135731,1708875558988,181.11,0.0002285,2]
[315135732,1708875580199,-155.0,0.00023588,2]
[315135733,1708875580231,-150.0,0.00023589,2]
[315135734,1708875580282,-1673.0974,0.0002359,2]
[315135735,1708875580295,-155.0,0.0002359,2]
[315135736,1708875580306,-150.0,0.0002359,2]
[315135737,1708875580317,-5738.8052,0.0002359,2]
[315135738,1708875580326,-1978.0974,0.0002359,2]
[315135739,1708875594476,783.44,0.00020939,2]
[315135740,1708875594708,783.44,0.00023203,2]
[315135741,1708875624806,159.88,0.00023013,2]
[315135742,1708875625019,159.88,0.00023412,2]
[315135743,1708875631693,200.0,0.00022842,2]
[315135744,1708875654401,150.42,0.00016712,2]
[315135745,1708875706310,-9462.0885,0.0002359,2]
[315135746,1708875706330,-2863.5426,0.0002359,2]
[315135747,1708875706350,-567.0909,0.0002359,2]
[315135748,1708875706371,-537.09222429,0.00023598,2]
[315135749,1708875712942,13664.45728117,0.00023489,2]
[315135750,1708875712962,5000.0,0.00023489,2]
[315135751,1708875712984,6869.72331883,0.00023489,2]
[315135752,1708875765044,3111.311,0.0002349,2]
[315135755,1708875870520,286.36,0.00022835,2]
[315135756,1708875909453,568.06,0.00022836,2]
[315135757,1708875960449,4185.03,0.000228,2]
[315135758,1708875972445,407.26,0.00022797,2]
[315135759,1708875998291,166.02,0.00022797,2]
[315135760,1708876001179,358.06148286,0.00023499,2]
[315135761,1708876039769,150.92,0.00022796,2]
[315135762,1708876049572,157.66,0.00022793,2]
[315135763,1708876052702,705.09,0.00020876,2]
[315135764,1708876052910,705.09,0.00023139,2]
[315135765,1708876071104,200000.0,0.00023,2]
[315135766,1708876082406,200000.0,0.000235,2]
[315135767,1708876084689,205.0,0.00023181,2]
[315135768,1708876090029,200000.0,0.000235,2]
[315135769,1708876101335,165.73,0.00023474,2]
[315135770,1708876106094,217242.31257482,0.000235,2]
[315135771,1708876112189,238.70765524,0.00023499,2]
[315135772,1708876117218,16673.0462,0.0002349,2]
[315135773,1708876141504,160.79,0.00022992,2]
[315135774,1708876141943,165.84975043,0.00023499,2]
[315135777,1708876226596,159.13843682,0.00023492,2]
[315135781,1708876231756,-165.84975039,0.00023544,2]
[315135782,1708876231766,-159.13843681,0.00023547,2]
[315135783,1708876231775,-165.84975039,0.00023588,2]
[315135784,1708876231784,-150.0,0.00023589,2]
[315135785,1708876231793,-150.0,0.00023589,2]
[315135786,1708876231802,-300.0,0.00023589,2]
[315135787,1708876231812,-3583.82679476,0.0002359,2]
[315135788,1708876231825,-1298.31797469,0.0002359,2]
[315135789,1708876231836,-422.88853027,0.0002359,2]
[315135790,1708876231864,-1721.9738624,0.0002359,2]
[315135791,1708876231900,-358.16390953,0.0002359,2]
[315135792,1708876234314,-576.32490571,0.0002359,2]
[315135793,1708876234326,-658.25,0.0002359,2]
[315135794,1708876234374,-759.8606458,0.0002359,2]
[315135795,1708876234456,-255.03405,0.0002359,2]
[315135796,1708876234468,-7902.0000003,0.0002359,2]
[315135797,1708876234479,-12800.0,0.0002359,2]
[315135798,1708876234533,-3606.5775829,0.0002359,2]
[315135799,1708876234546,-4609.41180872,0.0002359,2]
[315135803,1708876237597,-304.7,0.0002359,2]
[315135804,1708876237817,-4980.50533477,0.0002359,2]
[315135805,1708876237829,-2771.86161282,0.0002359,2]
[315135806,1708876237850,-299.08271636,0.0002359,2]
[315135807,1708876237861,-52410.31000002,0.0002359,2]
[315135808,1708876237900,-19666.68,0.0002359,2]
[315135816,1708876240199,-987.72849965,0.0002359,2]
[315135817,1708876240276,-52798.1488713,0.0002359,2]
[315135818,1708876240286,-160.79,0.00023591,2]
[315135819,1708876240295,-159.13843681,0.00023602,2]
[315135820,1708876240304,-300.16,0.0002361,2]
[315135821,1708876240314,-165.84975039,0.00023633,2]